bitfinex/quotes_ETHUSD_20250711
["timestamp","ask_amount","ask_price","bid_price","bid_amount"]
[1752245261441,2.22,2999.2,2999.1,22.45153299]
[1752245261802,2.22,2999.2,2999.1,21.98903299]
[1752245262007,2.22,2999.2,2999.1,22.45153299]
[1752245262410,3.33,2999.2,2999.1,22.45153299]
[1752245263439,3.33,2999.2,2999.1,21.98903299]
[1752245263812,3.33,2999.2,2999.1,11.98903299]
[1752245264441,3.33,2999.2,2999.1,11.98803299]
[1752245264810,4.44,2999.2,2999.1,11.98803299]
[1752245265431,4.44,2999.2,2999.1,8.57733363]
[1752245266640,4.44,2999.2,2999.1,19.87463363]
[1752245266838,1.11,2999.8,2999.7,3.3336667]
[1752245267140,1.11,2999.8,2999.7,22.59126632]
[1752245267317,1.11,2999.8,2999.7,23.06546632]
[1752245268039,1.11,2999.8,2999.7,8.5756667]
[1752245269632,2.22,2999.8,2999.7,8.5756667]
[1752245270943,2.22,2999.8,2999.7,8.7420667]
[1752245272006,3.33,2999.8,2999.7,8.7420667]
[1752245272403,3.33,2999.8,2999.7,3.5000667]
[1752245272608,3.33,2999.8,2999.7,8.7420667]
[1752245272805,3.33,2999.8,2999.7,3.5000667]
[1752245273029,3.33,2999.8,2999.7,8.7410667]
[1752245273340,3.33,2999.8,2999.7,22.85278351]
[1752245274046,3.33,2999.8,2999.7,9.94855056]
[1752245274425,4.44,2999.8,2999.7,9.94855056]
[1752245275455,4.44,2999.8,2999.7,8.7410667]
[1752245275838,4.44,2999.8,2999.7,8.7400667]
[1752245276035,4.44,2999.8,2999.7,0.1664]
[1752245276243,4.44,2999.8,2999.4,5.24]
[1752245276447,9.68,2999.8,2999.5,3.50022923]
[1752245276647,9.68,2999.8,2999.5,0.1664]
[1752245276858,10.79,2999.8,2999.5,0.1664]
[1752245277765,0.7848,2999.4,2999.0,0.001]
[1752245277952,5.24,2999.3,2999.0,0.001]
[1752245279065,0.7848,2999.4,2999.0,0.001]
[1752245279371,1.11,2999.3,2999.0,0.001]
[1752245280136,1.11,2999.3,2999.0,3.33544024]
[1752245280470,1.11,2999.3,2999.2,3.33422245]
[1752245280767,1.11,2999.3,2999.2,8.60756467]
[1752245281075,1.11,2999.3,2999.2,3.33422245]
[1752245281369,1.11,2999.3,2999.2,8.60756467]
[1752245281693,1.11,2999.3,2999.2,8.57422245]
[1752245281852,2.22,2999.3,2999.2,11.83600105]
[1752245282856,2.22,2999.3,2999.2,6.59600105]
[1752245283177,2.22,2999.3,2999.2,11.05460105]
[1752245284068,2.22,2999.3,2999.2,8.57322245]
[1752245284254,3.33,2999.3,2999.2,8.57322245]
[1752245286768,4.44,2999.3,2999.2,8.57322245]
[1752245287222,5.55,2999.8,2999.7,3.3336667]
[1752245287397,5.55,2999.8,2999.7,8.5716667]
[1752245287700,5.55,2999.8,2999.7,10.00539052]
[1752245287857,0.71858009,2999.8,2999.7,20.00539052]
[1752245288062,0.71858009,2999.8,2999.7,20.77319052]
[1752245288769,1e-08,3000.0,2999.9,13.33344444]
[1752245289095,1e-08,3000.0,2999.9,18.57144444]
[1752245289391,8.882,3000.1,2999.9,20.96545618]
[1752245289593,0.002,3000.9,3000.4,13.67203295]
[1752245289794,0.002,3000.9,3000.4,22.24292189]
[1752245291881,1.112,3000.5,3000.4,22.24192189]
[1752245292086,0.002,3000.9,3000.5,3.33277787]
[1752245292301,0.002,3000.9,3000.8,17.06877763]
[1752245292506,0.002,3000.9,3000.8,22.30577763]
[1752245293533,1.11,3001.6,3001.4,3.33168233]
[1752245293813,1.11,3001.6,3001.5,8.56766749]
[1752245294212,2.22,3001.6,3001.5,8.56766749]
[1752245296707,3.33,3001.6,3001.5,8.56666749]
[1752245297815,3.33,3001.6,3001.5,8.56566749]
[1752245298919,3.33,3001.6,3001.5,8.73206749]
[1752245299214,4.44,3001.6,3001.5,8.73206749]
[1752245300550,4.44,3001.6,3001.5,11.30816496]
[1752245300746,4.44,3001.6,3001.5,21.30816496]
[1752245301520,5.55,3001.6,3001.5,21.30816496]
[1752245302141,5.55,3001.6,3001.5,21.30716496]
[1752245302436,2.22,3001.7,3001.6,3.3315565]
[1752245302640,2.22,3001.7,3001.6,6.74225586]
[1752245302847,0.002,3002.2,3002.1,3.33100163]
[1752245303152,0.002,3002.2,3002.1,21.46823458]
[1752245303309,0.002,3002.2,3002.1,31.46823458]
[1752245303503,0.002,3002.2,3002.1,31.63463458]
[1752245303709,0.002,3002.3,3002.2,4.16359068]
[1752245303937,0.002,3002.3,3002.2,4.19689958]
[1752245304864,0.002,3002.3,3002.2,4.16359068]
[1752245305153,0.002,3002.3,3002.2,8.56289068]
[1752245305512,0.002,3002.3,3002.2,3.33089068]
[1752245305842,0.002,3002.3,3002.2,3.36419958]
[1752245306070,0.002,3002.3,3002.2,8.59619958]
[1752245306242,1.112,3002.3,3002.2,8.56289068]
[1752245307146,1.112,3002.3,3002.2,5.231]
[1752245307307,1.112,3002.3,3002.2,8.56189068]
[1752245307513,1.112,3002.3,3002.2,5.231]
[1752245308253,0.7694,3002.2,3002.1,0.1664]
[1752245308460,0.7694,3002.2,3002.0,3.33105869]
[1752245308627,1.8794,3002.2,3002.1,3.33100163]
[1752245308941,1.8794,3002.2,3002.1,0.1664]
[1752245309147,1.8794,3002.2,3002.1,3.49740163]
[1752245309812,1.11,3002.2,3002.1,3.49740163]
[1752245311109,2.22,3002.2,3002.1,0.1664]
[1752245311306,2.22,3002.2,3002.1,3.49740163]
[1752245312050,2.22,3002.2,3002.1,6.24105343]
[1752245312213,2.22,3002.2,3002.1,6.27436344]
[1752245312417,2.22,3002.2,3002.1,6.24105343]
[1752245313750,3.33,3002.2,3002.1,6.24105343]
[1752245314469,3.33,3002.2,3002.1,6.27436344]
[1752245314930,3.33,3002.2,3002.1,6.24105343]
[1752245315439,3.33,3002.2,3002.1,8.72640163]
[1752245316151,4.44,3002.2,3002.1,8.72640163]
[1752245318582,5.55,3002.2,3002.1,8.72640163]
[1752245319058,5.55,3002.2,3002.1,3.49740163]
[1752245319244,5.55,3002.2,3002.1,8.72540163]
[1752245319449,5.55,3002.2,3002.1,9.43440179]
[1752245320160,5.55,3002.2,3002.1,20.23560179]
[1752245320334,1.112,3002.3,3002.2,13.33089068]
[1752245320742,0.2,3002.8,3002.7,3.33033603]
[1752245321083,0.2,3002.8,3002.7,8.55833603]
[1752245321365,0.2,3002.8,3002.7,0.1664]
[1752245321540,0.2,3002.8,3002.7,5.3944]
[1752245321541,1.0248,3002.8,3002.7,5.3944]
[1752245321736,1.0248,3002.8,3002.7,0.1664]
[1752245322160,1.0248,3002.8,3002.7,0.47593393]
[1752245323367,2.1348,3002.8,3002.7,0.47593393]
[1752245323558,2.1348,3002.8,3002.7,3.80651714]
[1752245323736,2.1348,3002.8,3002.7,0.47618111]
[1752245325766,3.2448,3002.8,3002.7,0.47618111]
[1752245325983,3.2448,3002.8,3002.7,0.30978111]
[1752245326150,4.15170163,3002.1,3002.0,0.1664]
[1752245326348,0.832,3002.0,3001.7,0.1664]
[1752245326542,3.33111675,3002.0,3001.7,0.1664]
[1752245326742,0.55,3001.8,3001.1,5.226]
[1752245326939,0.832,3001.7,3001.3,0.1664]
[1752245327140,0.832,3001.7,3001.1,3.33206996]
[1752245327345,0.832,3001.7,3001.5,0.1664]
[1752245328172,1.942,3001.7,3001.5,0.1664]
[1752245328583,1.942,3001.7,3001.6,3.3315565]
[1752245329376,1.11,3001.7,3001.6,3.3315565]
[1752245329950,1.11,3001.7,3001.5,0.1664]
[1752245330681,2.22,3001.7,3001.5,0.1664]
[1752245331180,2.22,3001.7,3001.5,3.49800582]
[1752245331379,2.22,3001.7,3001.5,0.1664]
[1752245331579,0.8042,3001.6,3001.5,0.1664]
[1752245332491,4.1357565,3001.6,3001.5,0.1664]
[1752245332701,0.789,3001.2,3001.0,0.001]
[1752245332854,19.89711155,3001.1,3001.0,0.001]
[1752245333462,16.565,3001.1,3001.0,0.001]
[1752245333648,19.89711155,3001.1,3001.0,0.001]
[1752245333847,16.565,3001.1,3001.0,0.001]
[1752245334045,6.015,3001.1,3001.0,0.001]
[1752245334248,6.565,3001.1,3001.0,0.001]
[1752245334665,16.565,3001.1,3001.0,0.001]
[1752245335484,17.675,3001.1,3001.0,0.001]
[1752245336553,21.00711155,3001.1,3001.0,0.001]
[1752245336753,17.675,3001.1,3001.0,0.001]
[1752245337083,21.00711155,3001.1,3001.0,0.001]
[1752245337496,51.00711155,3001.1,3001.0,0.001]
[1752245337960,52.11711155,3001.1,3001.0,0.001]
[1752245340565,53.22711155,3001.1,3001.0,0.001]
[1752245343108,53.22711155,3001.1,3000.3,0.001]
[1752245343109,1.3366,3000.4,3000.3,0.001]
[1752245343271,9.89648894,3000.4,3000.3,0.001]
[1752245343476,19.89648894,3000.4,3000.3,0.001]
[1752245344168,16.5636,3000.4,3000.3,0.001]
[1752245344397,19.89648894,3000.4,3000.3,0.001]
[1752245345516,21.00648894,3000.4,3000.3,0.001]
[1752245346318,12.4466,3000.4,3000.3,0.001]
[1752245346470,12.613,3000.4,3000.3,0.001]
[1752245346677,17.84,3000.4,3000.3,0.001]
[1752245347096,12.063,3000.4,3000.3,0.001]
[1752245347408,1.11,3000.4,3000.3,4.27110003]
[1752245347707,1.11,3000.4,3000.3,5.03152054]
[1752245347910,2.22,3000.4,3000.3,5.03152054]
[1752245350190,2.22,3000.4,3000.3,5.06485054]
[1752245350390,3.33,3000.4,3000.3,5.06485054]
[1752245350903,4.44,3001.1,3001.0,3.33222259]
[1752245351129,4.44,3001.1,3001.0,4.42624485]
[1752245351286,4.44,3001.1,3001.0,4.59264485]
[1752245351480,4.44,3001.1,3001.0,1.26042226]
[1752245351683,4.44,3001.1,3001.0,0.1664]
[1752245352782,5.55,3001.1,3001.0,0.1664]
[1752245353397,5.55,3001.1,3001.0,3.49862259]
[1752245353782,5.55,3001.1,3001.0,0.1664]
[1752245354395,5.55,3001.1,3001.0,0.1674]
[1752245354924,5.552,3001.1,3001.0,0.1674]
[1752245355414,6.662,3001.1,3001.0,0.1674]
[1752245356194,6.662,3001.1,3001.0,3.49962259]
[1752245356398,6.662,3001.1,3001.0,0.1674]
[1752245357724,7.772,3001.1,3001.0,3.49962259]
[1752245358024,12.997,3001.1,3001.0,0.1674]
[1752245358588,7.772,3001.1,3001.0,3.8495924]
[1752245359187,7.772,3001.1,3001.0,4.6300924]
[1752245360088,8.882,3001.1,3001.0,4.6300924]
[1752245361204,8.882,3001.1,3001.0,3.8495924]
[1752245361399,8.882,3001.1,3001.0,8.72262259]
[1752245362625,9.992,3001.1,3001.0,9.49332259]
[1752245364890,11.102,3001.1,3001.0,9.49332259]
[1752245366635,11.102,3001.1,3001.0,8.72262259]
[1752245366934,11.102,3001.1,3001.0,8.72162259]
[1752245367094,11.102,3001.1,3001.0,3.49962259]
[1752245367296,12.212,3001.1,3001.0,3.49962259]
[1752245370104,13.322,3001.1,3001.0,3.49962259]
[1752245370839,13.322,3001.1,3001.0,3.90954555]
[1752245371042,13.322,3001.1,3001.0,9.13054555]
[1752245372453,13.322,3001.1,3001.0,0.1674]
[1752245372739,14.432,3001.1,3001.0,0.1674]
[1752245375223,15.542,3001.1,3001.0,0.1674]
[1752245376215,16.3715,3001.1,3001.0,0.1674]
[1752245377146,15.542,3001.1,3001.0,3.49962259]
[1752245377350,20.761,3001.1,3001.0,3.49962259]
[1752245377545,21.871,3001.1,3001.0,3.49962259]
[1752245377846,21.871,3001.1,3001.0,4.26019746]
[1752245378012,16.652,3001.1,3001.0,4.26019746]
[1752245379709,16.652,3001.1,3001.0,9.47919746]
[1752245380049,16.652,3001.1,3001.0,8.71862259]
[1752245380210,17.762,3001.1,3001.0,8.71862259]
[1752245381715,17.762,3001.1,3001.0,3.49962259]
[1752245381918,17.762,3001.1,3001.0,0.1674]
[1752245382238,17.762,3001.1,3001.0,3.49962259]
[1752245382647,18.872,3001.1,3001.0,3.81036627]
[1752245383670,18.872,3001.1,3001.0,5.0464355]
[1752245383823,1.61661433,3001.1,3001.0,5.84275772]
[1752245384025,1.11,3001.6,3001.0,5.84275772]
[1752245384026,1.11,3001.6,3001.5,4.16446749]
[1752245384223,1.11,3001.6,3001.5,23.51819624]
[1752245385024,2.22,3001.6,3001.5,23.51819624]
[1752245385924,0.7685,3002.7,3002.2,3.33088618]
[1752245386138,0.7685,3002.7,3002.3,14.07652341]
[1752245386343,0.7685,3002.7,3002.3,14.24292341]
[1752245386871,2.42,3002.8,3002.3,15.89529876]
[1752245387435,2.42,3002.8,3002.3,15.79044476]
[1752245387649,1.112,3002.4,3002.3,15.79044476]
[1752245389542,1.112,3002.4,3002.3,14.13806941]
[1752245389942,2.222,3002.4,3002.3,14.13806941]
[1752245390144,2.222,3002.4,3002.3,10.80728968]
[1752245391773,2.222,3002.4,3002.3,14.13806941]
[1752245391971,2.222,3002.4,3002.3,10.80728968]
[1752245392339,3.332,3002.4,3002.3,14.13806941]
[1752245392562,3.332,3002.4,3002.3,5.58728968]
[1752245393146,3.332,3002.4,3002.3,0.37228968]
[1752245393543,3.332,3002.4,3002.3,0.1664]
[1752245393876,3.332,3002.4,3002.2,0.1664]
[1752245394048,0.7514,3002.2,3001.5,3.33157488]
[1752245394254,0.7514,3002.2,3001.9,0.1664]
[1752245394670,1.8614,3002.2,3001.6,8.54555212]
[1752245394874,1.8614,3002.2,3002.1,0.1664]
[1752245395682,1.11,3002.2,3002.1,0.1664]
[1752245395972,1.11,3002.2,3002.1,0.51614511]
[1752245396276,1.11,3002.2,3002.1,3.84714674]
[1752245396641,1.11,3002.2,3002.1,4.29134674]
[1752245396841,1.11,3002.2,3002.1,4.32465675]
[1752245397159,1.11,3002.2,3002.1,4.29134674]
[1752245397360,2.22,3002.2,3002.1,4.29134674]
[1752245399345,2.22,3002.2,3002.1,4.60018768]
[1752245399894,3.33,3002.2,3002.1,4.60018768]
[1752245400242,3.33,3002.2,3002.1,9.81318768]
[1752245402246,4.44,3002.2,3002.1,9.81318768]
[1752245403554,4.44,3002.2,3002.1,9.81118768]
[1752245404050,4.44,3002.2,3002.1,4.15598768]
[1752245404267,8.58559068,3002.2,3002.1,0.47524094]
[1752245404451,6.2356,3002.2,3002.1,0.30884094]
[1752245404666,19.56649068,3002.2,3002.1,0.30884094]
[1752245404866,20.67649068,3002.2,3002.1,0.30884094]
[1752245405066,3.33144551,3001.7,3001.6,0.96498571]
[1752245405379,6.5742,3001.7,3001.6,1.27428813]
[1752245405746,7.0066,3001.7,3001.6,1.27428813]
[1752245406580,6.4566,3001.7,3001.6,1.27428813]
[1752245406880,0.8132,3001.7,3001.6,1.27428813]
[1752245407078,1.9232,3001.7,3001.6,1.27428813]
[1752245407679,1.11,3001.7,3001.6,1.27428813]
[1752245408083,1.5424,3001.7,3001.6,1.27428813]
[1752245408254,1.9208,3001.7,3001.6,1.27428813]
[1752245408454,3.0696,3001.7,3001.6,1.27428813]
[1752245409580,4.1796,3001.7,3001.6,1.27428813]
[1752245409782,7.51104551,3001.7,3001.6,1.27428813]
[1752245410376,14.1796,3001.7,3001.6,1.27428813]
[1752245410554,17.51104551,3001.7,3001.6,1.27428813]
[1752245410956,22.72204551,3001.7,3001.6,1.27428813]
[1752245412090,23.83204551,3001.7,3001.6,1.27428813]
[1752245412769,24.08614899,3001.7,3001.6,1.27428813]
[1752245413451,24.08614899,3001.7,3001.6,0.96498571]
[1752245414449,25.19614899,3001.7,3001.6,0.96498571]
[1752245414877,25.19614899,3001.7,3001.0,0.001]
[1752245414878,3.88211155,3001.1,3001.0,0.001]
[1752245415189,19.90951155,3001.1,3001.0,0.001]
[1752245415365,20.34191155,3001.1,3001.0,0.001]
[1752245416975,21.45191155,3001.1,3001.0,0.001]
[1752245417487,10.55,3000.8,3000.2,0.1664]
[1752245417688,5.21,3000.7,3000.2,0.1664]
[1752245418288,0.7538,3000.6,3000.2,0.1664]
[1752245418589,5.211,3000.5,3000.2,0.1664]
[1752245419378,6.321,3000.5,3000.2,0.1664]
[1752245419612,3.33355557,2999.8,2999.7,0.001]
[1752245419768,16.7362,2999.8,2999.7,0.001]
[1752245419967,20.50215557,2999.8,2999.7,0.001]
[1752245420709,17.1686,2999.8,2999.7,0.001]
[1752245420871,6.0208,2999.8,2999.7,0.001]
[1752245421366,6.4532,2999.8,2999.7,0.001]
[1752245422011,7.5632,2999.8,2999.7,0.001]
[1752245422517,1.11,2999.8,2999.7,0.001]
[1752245422718,6.32,2999.8,2999.7,3.3346667]
[1752245422884,6.32,2999.8,2999.7,4.46631866]
[1752245423090,6.32,2999.8,2999.7,0.66785196]
[1752245423420,6.32,2999.8,2999.7,0.001]
[1752245424006,8.0878,2999.8,2999.7,0.001]
[1752245424167,12.4154,2999.8,2999.7,0.001]
[1752245424502,7.431,2999.8,2999.7,0.001]
[1752245424804,2.22,2999.8,2999.7,3.7994667]
[1752245425001,2.22,2999.8,2999.7,4.52943073]
[1752245425500,2.22,2999.8,2999.7,0.73096403]
[1752245425699,2.22,2999.8,2999.7,0.001]
[1752245426886,3.33,2999.8,2999.7,0.001]
[1752245427988,3.33,2999.8,2999.7,0.1674]
[1752245428314,3.33,2999.8,2999.7,3.9658667]
[1752245428509,3.33,2999.8,2999.7,4.7406667]
[1752245428697,3.33,2999.8,2999.7,5.65892744]
[1752245429273,4.44,2999.8,2999.7,5.65892744]
[1752245430497,4.44,2999.8,2999.7,5.62559078]
[1752245430817,1e-08,2999.8,2999.7,15.65892744]
[1752245431120,1e-08,2999.8,2999.7,15.62559078]
[1752245431281,1e-08,2999.8,2999.7,5.62559078]
[1752245431677,1e-08,2999.8,2999.7,10.83559078]
[1752245432010,1.11000001,2999.8,2999.7,10.83559078]
[1752245433187,1.11,3000.5,2999.7,10.83559078]
[1752245433188,1.11,3000.5,3000.4,3.33288894]
[1752245433501,1.11,3000.5,3000.4,4.57868894]
[1752245433674,1.11,3000.5,3000.4,4.74508894]
[1752245434378,1.11,3000.5,3000.4,4.77841782]
[1752245434379,2.22,3000.5,3000.4,4.77841782]
[1752245434575,2.22,3000.5,3000.4,4.74508894]
[1752245434799,2.22,3000.5,3000.4,5.55289722]
[1752245435005,2.22,3000.5,3000.4,0.1664]
[1752245435406,2.22,3000.5,3000.4,3.96408894]
[1752245435991,2.22,3000.5,3000.4,9.00668894]
[1752245436204,2.22,3000.5,3000.4,9.80218894]
[1752245436820,3.33,3000.5,3000.4,9.80218894]
[1752245437031,3.33,3000.5,3000.4,12.07226579]
[1752245438030,3.33,3000.5,3000.4,22.07226579]
[1752245438996,4.0043,3000.5,3000.4,22.07226579]
[1752245439694,3.705,3000.5,3000.4,22.07226579]
[1752245440315,1.11,3001.1,3000.4,22.07226579]
[1752245440492,1.11,3001.1,3001.0,4.11472259]
[1752245440820,1.11,3001.1,3001.0,9.32272259]
[1752245441024,1.11,3001.1,3001.0,3.33222259]
[1752245441209,1.11,3001.1,3001.0,8.53922259]
[1752245441385,2.22,3001.1,3000.9,3.33224776]
[1752245441735,2.22,3001.1,3001.0,3.33222259]
[1752245441891,0.7536,3000.9,3000.2,0.91527107]
[1752245442086,0.4624,3000.8,3000.2,0.91527107]
[1752245442397,0.7849,3000.7,3000.2,0.91527107]
[1752245442606,0.4624,3000.6,3000.2,0.91527107]
[1752245443837,1.5724,3000.6,3000.2,4.24832512]
[1752245444130,0.002,3000.5,3000.2,0.91527107]
[1752245444422,0.002,3000.5,3000.3,3.33300003]
[1752245444587,0.002,3000.5,3000.2,5.13803264]
[1752245444790,0.002,3000.5,3000.3,3.33293363]
[1752245445214,0.002,3000.5,3000.2,0.91527107]
[1752245445832,0.4624,3000.4,3000.2,0.91527107]
[1752245446035,0.002,3000.5,3000.2,1.08167107]
[1752245446359,1.11,3000.4,3000.2,1.08167107]
[1752245446628,1.11,3000.4,3000.2,0.1664]
[1752245447218,1.5724,3000.4,3000.2,0.1664]
[1752245448534,1.11,3000.4,3000.2,0.1664]
[1752245448707,2.22,3000.4,3000.2,0.1664]
[1752245449728,0.77,3000.2,2999.7,0.001]
[1752245450035,0.77,3000.2,2999.8,0.1664]
[1752245450253,3.88333694,3000.0,2999.7,0.001]
[1752245450440,0.4624,3000.1,2999.7,0.001]
[1752245450441,4.65115557,2999.8,2999.7,0.001]
[1752245450752,1.3176,2999.8,2999.7,0.001]
[1752245451154,6.986,2999.8,2999.7,0.001]
[1752245451649,6.436,2999.8,2999.7,0.001]
[1752245453471,7.546,2999.8,2999.7,0.001]
[1752245454224,7.0836,2999.8,2999.7,0.001]
[1752245454419,1.11,2999.8,2999.7,4.10184749]
[1752245454665,1.11,2999.8,2999.7,4.5231667]
[1752245454834,1.11,2999.8,2999.7,14.9361667]
[1752245455737,1.11,2999.8,2999.7,13.7476667]
[1752245456057,2.22,2999.8,2999.7,0.001]
[1752245456272,2.22,2999.8,2999.7,3.3346667]
[1752245456557,2.22,2999.8,2999.7,0.001]
[1752245456726,2.22,2999.8,2999.7,3.3346667]
[1752245457452,2.22,2999.8,2999.7,0.001]
[1752245457757,2.6924,2999.8,2999.7,0.001]
[1752245458133,17.34825557,2999.8,2999.7,0.001]
[1752245458565,18.45825557,2999.8,2999.7,0.001]
[1752245458731,15.1247,2999.8,2999.7,0.001]
[1752245458922,18.45825557,2999.8,2999.7,0.001]
[1752245460354,15.1247,2999.8,2999.7,0.001]
[1752245460962,21.1347,2999.8,2999.7,0.001]
[1752245461164,20.5847,2999.8,2999.7,0.001]
[1752245462538,4.44,2999.8,2999.7,0.1674]
[1752245462956,4.44,2999.8,2999.7,3.5010667]
[1752245463155,4.44,2999.8,2999.7,0.1674]
[1752245463344,5.55,2999.8,2999.7,3.5010667]
[1752245463541,5.55,2999.8,2999.7,4.18466028]
[1752245463745,5.55,2999.8,2999.7,3.9346667]
[1752245464366,5.55,2999.8,2999.7,0.601]
[1752245464570,5.55,2999.8,2999.7,0.1674]
[1752245464868,5.55,2999.8,2999.7,3.5010667]
[1752245465065,5.55,2999.8,2999.7,4.61825057]
[1752245466290,6.66,2999.8,2999.7,4.61825057]
[1752245468189,6.66,2999.8,2999.7,5.40288723]
[1752245468470,7.77,2999.8,2999.7,5.40288723]
[1752245469678,7.77,2999.8,2999.7,5.36955057]
[1752245470765,8.88,2999.8,2999.7,5.36955057]
[1752245471071,8.88,2999.8,2999.7,15.77855057]
[1752245472576,8.88,2999.8,2999.7,0.001]
[1752245472790,13.49355557,2999.8,2999.7,0.001]
[1752245472992,25.15355557,2999.8,2999.7,0.001]
[1752245475051,25.15355557,2999.8,2999.6,0.001]
[1752245475388,13.88422245,2999.2,2999.1,0.001]
[1752245475557,19.85462245,2999.2,2999.1,0.001]
[1752245475902,16.9928,2999.2,2999.1,0.001]
[1752245476081,20.32702245,2999.2,2999.1,0.001]
[1752245476955,50.32702245,2999.2,2999.1,0.001]
[1752245477152,20.32702245,2999.2,2999.1,0.001]
[1752245477378,50.50610835,2999.2,2999.1,0.001]
[1752245477688,51.04301118,2999.2,2999.1,0.001]
[1752245477890,52.15301118,2999.2,2999.1,0.001]
[1752245478268,51.43702245,2999.2,2999.1,0.001]
[1752245480194,42.8988,2999.2,2999.1,0.001]
[1752245480401,18.6628,2999.2,2999.1,0.001]
[1752245480586,19.2128,2999.2,2999.1,0.001]
[1752245481997,13.5364,2999.2,2999.1,0.001]
[1752245482183,8.1904,2999.2,2999.1,0.001]
[1752245482584,8.657,2999.2,2999.1,0.001]
[1752245482813,9.767,2999.2,2999.1,0.001]
[1752245483313,14.0964,2999.2,2999.1,0.001]
[1752245483518,8.534,2999.2,2999.1,0.001]
[1752245484203,3.33,2999.2,2999.1,4.25292336]
[1752245484405,8.534,2999.2,2999.1,4.25292336]
[1752245484603,3.33,2999.2,2999.1,0.91858973]
[1752245484776,3.33,2999.2,2999.1,0.001]
[1752245484983,9.644,2999.2,2999.1,0.001]
[1752245485825,9.644,2999.2,2999.1,3.78143363]
[1752245486112,4.44,2999.2,2999.1,4.58663363]
[1752245486432,14.44,2999.2,2999.1,0.001]
[1752245486721,9.643,2999.2,2999.1,0.001]
[1752245486936,4.44,2999.2,2999.1,0.001]
[1752245487092,9.643,2999.2,2999.1,0.4471]
[1752245487428,10.753,2999.2,2999.1,0.001]
[1752245488054,21.99,2999.2,2999.1,0.001]
[1752245488260,25.32422245,2999.2,2999.1,0.001]
[1752245488570,21.99,2999.2,2999.1,0.001]
[1752245488726,21.5234,2999.2,2999.1,0.001]
[1752245489756,21.99,2999.2,2999.1,0.001]
[1752245489956,26.98422245,2999.2,2999.1,0.001]
[1752245490173,27.15062245,2999.2,2999.1,0.001]
[1752245490328,26.38022245,2999.2,2999.1,0.001]
[1752245490647,27.20552245,2999.2,2999.1,0.001]
[1752245491844,18.2017,2999.2,2999.1,0.001]
[1752245492163,22.8547,2999.2,2999.1,0.001]
[1752245492363,28.31552245,2999.2,2999.1,0.001]
[1752245493578,24.5147,2999.2,2999.1,0.001]
[1752245493720,23.9647,2999.2,2999.1,0.001]
[1752245493915,7.9364,2999.2,2999.1,0.001]
[1752245494120,13.1394,2999.2,2999.1,0.001]
[1752245494553,13.606,2999.2,2999.1,0.001]
[1752245494714,14.2494,2999.2,2999.1,0.001]
[1752245495766,24.716,2999.2,2999.1,0.001]
[1752245495962,25.266,2999.2,2999.1,0.001]
[1752245496267,28.60022245,2999.2,2999.1,0.001]
[1752245496465,29.39692245,2999.2,2999.1,0.001]
[1752245497156,30.50692245,2999.2,2999.1,0.001]
[1752245497621,27.1727,2999.2,2999.1,0.001]
[1752245498030,30.50692245,2999.2,2999.1,0.001]
[1752245498535,30.50592245,2999.2,2999.1,0.001]
[1752245499321,27.1717,2999.2,2999.1,0.001]
[1752245499522,27.8151,2999.2,2999.1,0.001]
[1752245499720,22.6131,2999.2,2999.1,0.001]
[1752245500071,27.0184,2999.2,2999.1,0.001]
[1752245500843,21.1,2999.2,2999.1,0.4471]
[1752245501154,26.302,2999.2,2999.1,0.4471]
[1752245501729,26.302,2999.2,2999.1,0.001]
[1752245501931,27.412,2999.2,2999.1,0.001]
[1752245502132,28.8848,2999.2,2999.1,0.001]
[1752245502763,32.68562245,2999.2,2999.1,0.001]
[1752245502943,63.03212029,2999.2,2999.1,0.001]
[1752245503572,33.7504102,2999.2,2999.1,0.001]
[1752245503735,63.7504102,2999.2,2999.1,0.001]
[1752245503932,43.88433363,2999.1,2999.0,1e-08]
[1752245504161,44.67358961,2998.6,2998.5,0.001]
[1752245504574,50.34218961,2998.6,2998.5,0.001]
[1752245506579,50.65377467,2998.6,2998.5,0.001]
[1752245506875,52.48181256,2998.6,2998.5,0.001]
[1752245507555,52.1702275,2998.6,2998.5,0.001]
[1752245507733,52.48166959,2998.6,2998.5,0.001]
[1752245507935,22.1702275,2998.6,2998.5,0.001]
[1752245508176,13.63333789,2998.6,2998.5,0.001]
[1752245508342,51.45218961,2998.6,2998.5,0.001]
[1752245508738,52.16978881,2998.6,2998.5,0.001]
[1752245509341,53.27978881,2998.6,2998.5,0.001]
[1752245511858,54.38978881,2998.6,2998.5,0.001]
[1752245512744,54.38978881,2998.6,2998.5,1e-08]
[1752245513443,62.39178881,2998.6,2998.5,1e-08]
[1752245513643,63.28509339,2998.6,2998.5,1e-08]
[1752245514081,62.39178881,2998.6,2998.5,1e-08]
[1752245514294,63.50178881,2998.6,2998.5,1e-08]
[1752245515263,63.50178881,2998.6,2997.5,1e-08]
[1752245515264,3.33522329,2998.3,2997.5,1e-08]
[1752245515447,44.68062472,2997.4,2997.3,1e-08]
[1752245515785,51.07485445,2997.4,2997.3,1e-08]
[1752245515986,51.9337852,2997.4,2997.3,1e-08]
[1752245516170,40.55,2997.0,2996.9,1e-08]